[Event "*** Titled Tuesday Blitz"]
[Site "Chess.com"]
[Date "2019.10.01"]
[Round "3"]
[White "Olga_Ustinova"]
[Black "evgenyermolaev"]
[Result "1-0"]
[WhiteElo "2335"]
[BlackElo "2478"]
[TimeControl "180+2"]
[EndTime "13:35:34 PDT"]
[Termination "Olga_Ustinova won by resignation"]

1. d4 {[%clk 0:03:01.9]} 1... Nf6 {[%clk 0:02:48.6]} 2. Nf3 {[%clk 0:03:03.8]}
2... e6 {[%clk 0:02:47]} 3. Bf4 {[%clk 0:03:05.1]} 3... d5 {[%clk 0:02:47.7]} 4.
e3 {[%clk 0:03:06.3]} 4... b6 {[%clk 0:02:48.4]} 5. Nbd2 {[%clk 0:03:06.8]} 5...
Bb7 {[%clk 0:02:49.7]} 6. Bd3 {[%clk 0:03:06.8]} 6... Nbd7 {[%clk 0:02:49.3]} 7.
c3 {[%clk 0:03:07.8]} 7... c5 {[%clk 0:02:50.3]} 8. Ne5 {[%clk 0:03:08.2]} 8...
Nxe5 {[%clk 0:02:49.3]} 9. dxe5 {[%clk 0:03:09]} 9... Nd7 {[%clk 0:02:49.8]} 10.
e4 {[%clk 0:03:09.8]} 10... d4 {[%clk 0:02:49]} 11. cxd4 {[%clk 0:03:09.7]}
11... cxd4 {[%clk 0:02:50.9]} 12. O-O {[%clk 0:03:09.1]} 12... Nc5 {[%clk
0:02:51.4]} 13. Bb5+ {[%clk 0:03:07.2]} 13... Nd7 {[%clk 0:02:50.6]} 14. Nc4
{[%clk 0:03:06.9]} 14... Bxe4 {[%clk 0:02:44.1]} 15. Qa4 {[%clk 0:02:55.5]}
15... Bc5 {[%clk 0:02:26.6]} 16. b4 {[%clk 0:02:52.5]} 16... Be7 {[%clk
0:02:23.8]} 17. Rfd1 {[%clk 0:02:53.5]} 17... d3 {[%clk 0:02:23.6]} 18. f3
{[%clk 0:02:52.3]} 18... Bg6 {[%clk 0:02:23.1]} 19. Rac1 {[%clk 0:02:47.1]}
19... Rc8 {[%clk 0:01:44.2]} 20. Nd6+ {[%clk 0:02:39.7]} 20... Bxd6 {[%clk
0:01:41.1]} 21. Bxd7+ {[%clk 0:02:40.3]} 21... Qxd7 {[%clk 0:01:28.5]} 22. Rxc8+
{[%clk 0:02:40.6]} 22... Ke7 {[%clk 0:01:30.4]} 23. Qxd7+ {[%clk 0:02:41]} 23...
Kxd7 {[%clk 0:01:29]} 24. Rxh8 {[%clk 0:02:39.8]} 24... Bxb4 {[%clk 0:01:29.5]}
25. Rd2 {[%clk 0:02:34.8]} 25... Bxd2 {[%clk 0:01:29]} 26. Bxd2 {[%clk
0:02:36.7]} 26... Kc6 {[%clk 0:01:29.9]} 27. Kf2 {[%clk 0:02:38.5]} 27... Kd5
{[%clk 0:01:30.6]} 28. Ke3 {[%clk 0:02:38.4]} 28... Kxe5 {[%clk 0:01:31.5]} 29.
Bc3+ {[%clk 0:02:39.8]} 29... Kd5 {[%clk 0:01:32.3]} 30. Bxg7 {[%clk 0:02:41.7]}
30... Kc4 {[%clk 0:01:32.9]} 31. Ra8 {[%clk 0:02:41.5]} 31... a5 {[%clk
0:01:33.8]} 32. a4 {[%clk 0:02:38.8]} 32... Kb4 {[%clk 0:01:33.9]} 33. Rb8
{[%clk 0:02:39.3]} 33... Kxa4 {[%clk 0:01:32.2]} 34. Rxb6 {[%clk 0:02:40.8]}
34... Ka3 {[%clk 0:01:32.9]} 35. g4 {[%clk 0:02:38.6]} 35... a4 {[%clk
0:01:33.1]} 36. h4 {[%clk 0:02:39.8]} 36... h5 {[%clk 0:01:26.4]} 37. gxh5
{[%clk 0:02:41.7]} 37... Bxh5 {[%clk 0:01:27.5]} 38. Kxd3 {[%clk 0:02:42.6]}
38... Bxf3 {[%clk 0:01:27.8]} 39. Kc3 {[%clk 0:02:41]} 39... f5 {[%clk
0:01:20.8]} 40. Rb1 {[%clk 0:02:39.9]} 40... Ka2 {[%clk 0:01:17.6]} 41. Rb2+
{[%clk 0:02:40.8]} 41... Ka1 {[%clk 0:01:16.5]} 42. Kc2 {[%clk 0:02:37.2]} 42...
Be4+ {[%clk 0:01:15.1]} 43. Kc1 {[%clk 0:02:35.2]} 43... e5 {[%clk 0:01:13.1]}
44. Bxe5 {[%clk 0:02:35.2]} 44... a3 {[%clk 0:01:13.3]} 45. Rb8+ {[%clk
0:02:33]} 45... Ka2 {[%clk 0:01:13.2]} 46. h5 {[%clk 0:02:34.9]} 46... f4 {[%clk
0:01:12.7]} 47. Bxf4 {[%clk 0:02:35.4]} 47... Bh7 {[%clk 0:01:13.4]} 48. h6
{[%clk 0:02:36.1]} 48... Bf5 {[%clk 0:01:14.4]} 49. Bd6 {[%clk 0:02:36.8]} 49...
Bh7 {[%clk 0:01:14.6]} 50. Ra8 {[%clk 0:02:36.7]} 50... Kb3 {[%clk 0:01:13.4]}
51. Rxa3+ {[%clk 0:02:38.6]} 51... Kc4 {[%clk 0:01:13.4]} 52. Ra7 {[%clk
0:02:40.5]} 52... Bg6 {[%clk 0:01:13.9]} 53. h7 {[%clk 0:02:42.4]} 53... Bxh7
{[%clk 0:01:15.2]} 54. Rxh7 {[%clk 0:02:43.9]} 1-0

[Event "*** Titled Tuesday Blitz"]
[Site "Chess.com"]
[Date "2019.10.01"]
[Round "3"]
[White "newauto"]
[Black "mortngabriel"]
[Result "0-1"]
[WhiteElo "2000"]
[BlackElo "2326"]
[TimeControl "180+2"]
[EndTime "13:35:38 PDT"]
[Termination "mortngabriel won by resignation"]

1. e4 {[%clk 0:03:01.9]} 1... e6 {[%clk 0:02:59.7]} 2. d4 {[%clk 0:03:02.2]}
2... d5 {[%clk 0:03:00.8]} 3. exd5 {[%clk 0:03:02.1]} 3... Qxd5 {[%clk
0:02:58.2]} 4. Nf3 {[%clk 0:03:04]} 4... Nf6 {[%clk 0:02:54.2]} 5. Bd3 {[%clk
0:03:01.9]} 5... c5 {[%clk 0:02:53.1]} 6. c4 {[%clk 0:03:00.6]} 6... Qd8 {[%clk
0:02:53]} 7. Be3 {[%clk 0:02:57.2]} 7... cxd4 {[%clk 0:02:48.6]} 8. Bxd4 {[%clk
0:02:51.5]} 8... Nc6 {[%clk 0:02:47.2]} 9. Be3 {[%clk 0:02:47.5]} 9... Bb4+
{[%clk 0:02:40.1]} 10. Nc3 {[%clk 0:02:46.4]} 10... O-O {[%clk 0:02:28.4]} 11.
O-O {[%clk 0:02:45.9]} 11... Bxc3 {[%clk 0:02:22.3]} 12. bxc3 {[%clk 0:02:44.5]}
12... e5 {[%clk 0:02:24.2]} 13. Qc2 {[%clk 0:02:21.3]} 13... h6 {[%clk
0:02:14.7]} 14. Rfd1 {[%clk 0:02:20.2]} 14... Qe7 {[%clk 0:02:12.2]} 15. Nd2
{[%clk 0:02:07.3]} 15... Ng4 {[%clk 0:02:09.5]} 16. Nf1 {[%clk 0:01:33.6]} 16...
f5 {[%clk 0:01:56.3]} 17. Bc1 {[%clk 0:01:30.3]} 17... e4 {[%clk 0:01:16.4]} 18.
Be2 {[%clk 0:01:29.7]} 18... Nce5 {[%clk 0:01:10.3]} 19. a4 {[%clk 0:01:25.4]}
19... Qh4 {[%clk 0:01:06.3]} 20. g3 {[%clk 0:01:15.3]} 20... Qh3 {[%clk
0:01:03.1]} 21. c5 {[%clk 0:00:48.2]} 21... Nf3+ {[%clk 0:01:00.3]} 22. Bxf3
{[%clk 0:00:25.8]} 22... exf3 {[%clk 0:01:02.2]} 23. Ne3 {[%clk 0:00:26.2]}
23... Qxh2+ {[%clk 0:01:02.7]} 0-1

[Event "*** Titled Tuesday Blitz"]
[Site "Chess.com"]
[Date "2019.10.01"]
[Round "3"]
[White "vugarrasulov"]
[Black "TST2014"]
[Result "1-0"]
[WhiteElo "2851"]
[BlackElo "2564"]
[TimeControl "180+2"]
[EndTime "13:35:44 PDT"]
[Termination "vugarrasulov won by resignation"]

1. d4 {[%clk 0:03:01.9]} 1... Nf6 {[%clk 0:03:00.5]} 2. c4 {[%clk 0:03:03.3]}
2... e6 {[%clk 0:03:00.9]} 3. Nf3 {[%clk 0:03:03.8]} 3... d5 {[%clk 0:03:01.1]}
4. Nc3 {[%clk 0:03:03]} 4... c6 {[%clk 0:03:01.3]} 5. Bg5 {[%clk 0:03:00.8]}
5... h6 {[%clk 0:02:59.1]} 6. Bxf6 {[%clk 0:03:01.7]} 6... Qxf6 {[%clk
0:02:59.8]} 7. Qb3 {[%clk 0:03:01.6]} 7... Nd7 {[%clk 0:02:59.6]} 8. e4 {[%clk
0:02:50.1]} 8... dxe4 {[%clk 0:02:53.3]} 9. Nxe4 {[%clk 0:02:52]} 9... Qf5
{[%clk 0:02:52.4]} 10. Bd3 {[%clk 0:02:49.6]} 10... Qa5+ {[%clk 0:02:52.6]} 11.
Nc3 {[%clk 0:02:45.7]} 11... Be7 {[%clk 0:02:41.1]} 12. O-O {[%clk 0:02:46.3]}
12... O-O {[%clk 0:02:41.8]} 13. Rfe1 {[%clk 0:02:45.2]} 13... Qc7 {[%clk
0:02:29.9]} 14. Rad1 {[%clk 0:02:41.8]} 14... b6 {[%clk 0:02:29.2]} 15. Bb1
{[%clk 0:02:36]} 15... Rd8 {[%clk 0:02:25.9]} 16. d5 {[%clk 0:02:33.3]} 16...
cxd5 {[%clk 0:02:22.4]} 17. cxd5 {[%clk 0:02:34.1]} 17... Nf6 {[%clk 0:02:23.6]}
18. dxe6 {[%clk 0:02:30.5]} 18... Bxe6 {[%clk 0:02:22.8]} 19. Rxd8+ {[%clk
0:02:26.6]} 19... Bxd8 {[%clk 0:02:13.3]} 20. Rxe6 {[%clk 0:02:15.4]} 20... fxe6
{[%clk 0:02:14]} 21. Qxe6+ {[%clk 0:02:17.3]} 21... Qf7 {[%clk 0:02:15.1]} 22.
Qc6 {[%clk 0:02:17.5]} 22... Rb8 {[%clk 0:02:07.7]} 23. Ne5 {[%clk 0:02:16.6]}
23... Qe8 {[%clk 0:01:32.6]} 24. Qc4+ {[%clk 0:02:15.8]} 24... Kh8 {[%clk
0:01:33.2]} 25. Nf7+ {[%clk 0:02:12.7]} 25... Qxf7 {[%clk 0:01:05.8]} 26. Qxf7
{[%clk 0:02:14.6]} 26... b5 {[%clk 0:01:03.2]} 27. Nd5 {[%clk 0:02:10.9]} 27...
Rc8 {[%clk 0:00:57.6]} 28. Qf8+ {[%clk 0:02:05.4]} 28... Ng8 {[%clk 0:00:57.9]}
29. g3 {[%clk 0:02:01.6]} 29... Rc1+ {[%clk 0:00:57.2]} 30. Kg2 {[%clk
0:02:02.8]} 30... Rxb1 {[%clk 0:00:57.7]} 31. Qxd8 {[%clk 0:02:04]} 31... Rd1
{[%clk 0:00:58.8]} 32. Qa8 {[%clk 0:02:01.7]} 32... Kh7 {[%clk 0:00:55.9]} 33.
Ne3 {[%clk 0:02:02.2]} 33... Rd7 {[%clk 0:00:53.4]} 34. Qc6 {[%clk 0:02:03.1]}
34... Nf6 {[%clk 0:00:53.6]} 35. Qxb5 {[%clk 0:02:03.9]} 35... Rd6 {[%clk
0:00:53.4]} 36. a4 {[%clk 0:02:02.8]} 36... Rb6 {[%clk 0:00:54.2]} 37. Qf5+
{[%clk 0:02:03.5]} 37... Kh8 {[%clk 0:00:53.4]} 38. Nd5 {[%clk 0:01:59.2]} 38...
Nxd5 {[%clk 0:00:48.9]} 39. Qxd5 {[%clk 0:02:01.1]} 39... Rxb2 {[%clk
0:00:50.1]} 40. Qa8+ {[%clk 0:02:02.5]} 40... Kh7 {[%clk 0:00:50.8]} 41. Qxa7
{[%clk 0:02:04.4]} 41... Ra2 {[%clk 0:00:50.4]} 42. a5 {[%clk 0:02:05.1]} 42...
Ra3 {[%clk 0:00:51.7]} 43. a6 {[%clk 0:02:06.3]} 43... Ra2 {[%clk 0:00:53.1]}
44. Qb6 {[%clk 0:02:07.1]} 44... Ra1 {[%clk 0:00:53]} 45. a7 {[%clk 0:02:08.2]}
45... Ra3 {[%clk 0:00:53.4]} 46. Qb1+ {[%clk 0:02:08.1]} 46... Kh8 {[%clk
0:00:52.7]} 47. Qb8+ {[%clk 0:02:09.4]} 47... Kh7 {[%clk 0:00:54]} 48. a8=Q
{[%clk 0:02:10.5]} 48... Rxg3+ {[%clk 0:00:54.9]} 49. hxg3 {[%clk 0:02:10.8]}
1-0

[Event "*** Titled Tuesday Blitz"]
[Site "Chess.com"]
[Date "2019.10.01"]
[Round "3"]
[White "brendan174"]
[Black "dlp300"]
[Result "0-1"]
[WhiteElo "2122"]
[BlackElo "2519"]
[TimeControl "180+2"]
[EndTime "13:35:44 PDT"]
[Termination "dlp300 won by resignation"]

1. d4 {[%clk 0:03:01.9]} 1... Nf6 {[%clk 0:02:57.2]} 2. Nc3 {[%clk 0:03:03]}
2... d5 {[%clk 0:02:56.8]} 3. Bf4 {[%clk 0:03:03.6]} 3... Bf5 {[%clk 0:02:55.2]}
4. f3 {[%clk 0:03:04.1]} 4... e6 {[%clk 0:02:55.9]} 5. g4 {[%clk 0:03:04.9]}
5... Bg6 {[%clk 0:02:56.6]} 6. h4 {[%clk 0:03:06.6]} 6... h6 {[%clk 0:02:47.1]}
7. e3 {[%clk 0:03:07]} 7... Bb4 {[%clk 0:02:45.3]} 8. Bd3 {[%clk 0:03:04.5]}
8... Bxd3 {[%clk 0:02:42]} 9. Qxd3 {[%clk 0:03:05]} 9... a6 {[%clk 0:02:43.3]}
10. Ne2 {[%clk 0:03:03.6]} 10... c5 {[%clk 0:02:43.8]} 11. O-O-O {[%clk
0:02:28.8]} 11... Nc6 {[%clk 0:02:12]} 12. a3 {[%clk 0:02:05.1]} 12... c4 {[%clk
0:02:11]} 13. Qd2 {[%clk 0:02:05.4]} 13... Be7 {[%clk 0:02:08.8]} 14. Rhg1
{[%clk 0:01:54.8]} 14... b5 {[%clk 0:02:08.2]} 15. e4 {[%clk 0:01:52.6]} 15...
b4 {[%clk 0:02:05.6]} 16. axb4 {[%clk 0:01:52.7]} 16... Nxb4 {[%clk 0:02:07.5]}
17. Kb1 {[%clk 0:01:27]} 17... Qa5 {[%clk 0:02:02.6]} 18. Nc1 {[%clk 0:01:27.3]}
18... Ra7 {[%clk 0:01:59.5]} 19. N1a2 {[%clk 0:01:05.5]} 19... Rb7 {[%clk
0:01:58.3]} 20. g5 {[%clk 0:00:55]} 20... hxg5 {[%clk 0:01:57.4]} 21. hxg5
{[%clk 0:00:53.5]} 21... Nh5 {[%clk 0:01:57.8]} 22. Be3 {[%clk 0:00:51.3]} 22...
Qb6 {[%clk 0:01:58]} 23. Qc1 {[%clk 0:00:48.4]} 23... g6 {[%clk 0:01:51.6]} 24.
exd5 {[%clk 0:00:45.7]} 24... Nxd5 {[%clk 0:01:48.6]} 25. Nxd5 {[%clk
0:00:38.4]} 25... exd5 {[%clk 0:01:50.5]} 26. Ka1 {[%clk 0:00:32.9]} 26... Ng7
{[%clk 0:01:49.1]} 27. Bf4 {[%clk 0:00:29.2]} 27... Nf5 {[%clk 0:01:48.4]} 28.
Be5 {[%clk 0:00:29.9]} 28... Rh3 {[%clk 0:01:48.2]} 29. Rh1 {[%clk 0:00:28.4]}
29... Rxf3 {[%clk 0:01:45]} 30. Rh8+ {[%clk 0:00:28]} 30... Kd7 {[%clk
0:01:45.9]} 31. Rh7 {[%clk 0:00:18.5]} 31... Ne3 {[%clk 0:01:45.7]} 32. Rd2
{[%clk 0:00:18.8]} 32... Rf1 {[%clk 0:01:45.2]} 0-1

[Event "*** Titled Tuesday Blitz"]
[Site "Chess.com"]
[Date "2019.10.01"]
[Round "3"]
[White "H3nriqueTV"]
[Black "abubakrtagelsir"]
[Result "1-0"]
[WhiteElo "2149"]
[BlackElo "2385"]
[TimeControl "180+2"]
[EndTime "13:35:56 PDT"]
[Termination "H3nriqueTV won by resignation"]

1. e4 {[%clk 0:02:58.3]} 1... d6 {[%clk 0:03:00.6]} 2. Nf3 {[%clk 0:02:58.1]}
2... Nf6 {[%clk 0:03:00.9]} 3. Nc3 {[%clk 0:02:58.4]} 3... g6 {[%clk 0:03:01.3]}
4. d4 {[%clk 0:02:59.4]} 4... Bg7 {[%clk 0:03:02.2]} 5. Bc4 {[%clk 0:02:59.1]}
5... O-O {[%clk 0:03:02.2]} 6. O-O {[%clk 0:02:59.6]} 6... a6 {[%clk 0:03:02.8]}
7. a4 {[%clk 0:03:00.1]} 7... Nc6 {[%clk 0:03:02.3]} 8. h3 {[%clk 0:03:00.5]}
8... e5 {[%clk 0:03:02.9]} 9. Bg5 {[%clk 0:02:46]} 9... h6 {[%clk 0:03:00.5]}
10. Bh4 {[%clk 0:02:46.9]} 10... g5 {[%clk 0:02:56.6]} 11. Bg3 {[%clk
0:02:47.8]} 11... Nh5 {[%clk 0:02:49.8]} 12. Nxe5 {[%clk 0:02:38.3]} 12... dxe5
{[%clk 0:02:49.2]} 13. Qxh5 {[%clk 0:02:38.3]} 13... Nxd4 {[%clk 0:02:48.8]} 14.
Rad1 {[%clk 0:02:27.3]} 14... c6 {[%clk 0:02:47.6]} 15. Na2 {[%clk 0:02:10.3]}
15... Qe7 {[%clk 0:02:44.8]} 16. c3 {[%clk 0:02:10.7]} 16... Ne6 {[%clk
0:02:44.3]} 17. Nc1 {[%clk 0:02:09.8]} 17... Nf4 {[%clk 0:02:43.6]} 18. Bxf4
{[%clk 0:02:10.1]} 18... exf4 {[%clk 0:02:44.1]} 19. Nd3 {[%clk 0:02:10.2]}
19... Qxe4 {[%clk 0:02:29.4]} 20. b3 {[%clk 0:02:06.2]} 20... f3 {[%clk
0:02:26]} 21. Rfe1 {[%clk 0:02:04.4]} 21... Qf5 {[%clk 0:02:26.3]} 22. g4 {[%clk
0:02:03.5]} 22... Qf6 {[%clk 0:02:24.1]} 23. Ne5 {[%clk 0:01:54]} 23... b5
{[%clk 0:02:03.7]} 24. Bxf7+ {[%clk 0:01:24.7]} 24... Rxf7 {[%clk 0:02:02.3]}
25. Nxf7 {[%clk 0:01:25.7]} 25... Qxf7 {[%clk 0:01:31.2]} 26. Rd8+ {[%clk
0:01:25.1]} 26... Bf8 {[%clk 0:01:32.1]} 27. Qxf7+ {[%clk 0:00:54.4]} 27... Kxf7
{[%clk 0:01:30.2]} 28. Ree8 {[%clk 0:00:56.3]} 28... Bg7 {[%clk 0:01:14.1]} 29.
Rxc8 {[%clk 0:00:56]} 29... Ra7 {[%clk 0:01:09.8]} 30. Re3 {[%clk 0:00:56.6]}
30... bxa4 {[%clk 0:01:02.1]} 31. bxa4 {[%clk 0:00:56.7]} 31... Be5 {[%clk
0:00:50.3]} 32. Rxe5 {[%clk 0:00:57.1]} 1-0

[Event "*** Titled Tuesday Blitz"]
[Site "Chess.com"]
[Date "2019.10.01"]
[Round "3"]
[White "kosya4ok"]
[Black "IvanRadivojevic"]
[Result "1-0"]
[WhiteElo "2619"]
[BlackElo "2404"]
[TimeControl "180+2"]
[EndTime "13:36:06 PDT"]
[Termination "kosya4ok won by resignation"]

1. e4 {[%clk 0:03:01.9]} 1... c6 {[%clk 0:03:01]} 2. d4 {[%clk 0:03:02.3]} 2...
d5 {[%clk 0:03:02.9]} 3. e5 {[%clk 0:03:03.2]} 3... Bf5 {[%clk 0:03:03.6]} 4.
Nf3 {[%clk 0:03:02.1]} 4... e6 {[%clk 0:03:04.1]} 5. Be2 {[%clk 0:03:03.4]} 5...
c5 {[%clk 0:03:05.4]} 6. Be3 {[%clk 0:03:02.2]} 6... cxd4 {[%clk 0:03:05.6]} 7.
Nxd4 {[%clk 0:03:02.9]} 7... Ne7 {[%clk 0:03:06.9]} 8. O-O {[%clk 0:03:03.9]}
8... Nbc6 {[%clk 0:03:07.8]} 9. Bb5 {[%clk 0:03:05.4]} 9... a6 {[%clk
0:02:55.1]} 10. Bxc6+ {[%clk 0:01:55.3]} 10... bxc6 {[%clk 0:02:54]} 11. c4
{[%clk 0:01:56.8]} 11... Bxb1 {[%clk 0:02:33.7]} 12. Rxb1 {[%clk 0:01:56]} 12...
c5 {[%clk 0:02:34.9]} 13. Nb3 {[%clk 0:01:53.8]} 13... d4 {[%clk 0:02:36]} 14.
Nxc5 {[%clk 0:01:54.3]} 14... Nf5 {[%clk 0:01:56.2]} 15. Qa4+ {[%clk 0:01:44.7]}
15... Ke7 {[%clk 0:01:57]} 16. Bg5+ {[%clk 0:01:44.3]} 16... f6 {[%clk
0:01:57.2]} 17. Qc6 {[%clk 0:01:38.5]} 17... Qc8 {[%clk 0:01:53.9]} 18. exf6+
{[%clk 0:00:58.2]} 18... gxf6 {[%clk 0:01:54]} 19. Qe4 {[%clk 0:00:51.5]} 19...
fxg5 {[%clk 0:01:51.5]} 20. Nxe6 {[%clk 0:00:47.5]} 20... Kf6 {[%clk 0:01:47.7]}
21. Rfe1 {[%clk 0:00:42.3]} 21... Bc5 {[%clk 0:01:03.3]} 22. g4 {[%clk
0:00:41.3]} 22... Ne7 {[%clk 0:00:11.9]} 23. Qe5+ {[%clk 0:00:37.7]} 1-0

[Event "*** Titled Tuesday Blitz"]
[Site "Chess.com"]
[Date "2019.10.01"]
[Round "3"]
[White "Andrii_Prydun"]
[Black "M1711"]
[Result "0-1"]
[WhiteElo "2258"]
[BlackElo "2542"]
[TimeControl "180+2"]
[EndTime "13:36:16 PDT"]
[Termination "M1711 won by resignation"]

1. d4 {[%clk 0:03:01.9]} 1... Nf6 {[%clk 0:03:00.1]} 2. Nf3 {[%clk 0:03:01]}
2... b6 {[%clk 0:02:59.1]} 3. Bg5 {[%clk 0:03:00.3]} 3... Bb7 {[%clk 0:02:53.4]}
4. e3 {[%clk 0:03:00.3]} 4... g6 {[%clk 0:02:49.2]} 5. Nbd2 {[%clk 0:02:53.5]}
5... Bg7 {[%clk 0:02:49.6]} 6. Bd3 {[%clk 0:02:54.2]} 6... O-O {[%clk
0:02:49.7]} 7. O-O {[%clk 0:02:54.6]} 7... c5 {[%clk 0:02:47.8]} 8. c3 {[%clk
0:02:54.3]} 8... d6 {[%clk 0:02:47.8]} 9. Qe2 {[%clk 0:02:19.9]} 9... Nbd7
{[%clk 0:02:37.2]} 10. Ba6 {[%clk 0:02:16.8]} 10... Qc7 {[%clk 0:02:31.2]} 11.
Bxb7 {[%clk 0:02:13.3]} 11... Qxb7 {[%clk 0:02:33.1]} 12. Rfd1 {[%clk 0:01:58]}
12... h6 {[%clk 0:01:58.6]} 13. Bxf6 {[%clk 0:01:51]} 13... Bxf6 {[%clk
0:01:48.7]} 14. e4 {[%clk 0:01:45.6]} 14... cxd4 {[%clk 0:01:47.7]} 15. cxd4
{[%clk 0:01:44]} 15... Bg7 {[%clk 0:01:25.9]} 16. e5 {[%clk 0:01:39.3]} 16...
dxe5 {[%clk 0:01:25.9]} 17. dxe5 {[%clk 0:01:40.2]} 17... Nc5 {[%clk 0:01:26.8]}
18. Nd4 {[%clk 0:00:55.7]} 18... Rfd8 {[%clk 0:01:14.1]} 19. N2f3 {[%clk
0:00:56.5]} 19... Rac8 {[%clk 0:01:01.7]} 20. e6 {[%clk 0:00:53.4]} 20... f5
{[%clk 0:00:48.1]} 21. Ne5 {[%clk 0:00:52.6]} 21... Kh7 {[%clk 0:00:43.8]} 22.
Nef3 {[%clk 0:00:06.5]} 22... Qe4 {[%clk 0:00:41.6]} 23. Qf1 {[%clk 0:00:04.4]}
23... Bxd4 {[%clk 0:00:40.5]} 24. Re1 {[%clk 0:00:03.4]} 24... Qb7 {[%clk
0:00:39.2]} 25. Rad1 {[%clk 0:00:04.4]} 25... Bf6 {[%clk 0:00:39.4]} 0-1

[Event "*** Titled Tuesday Blitz"]
[Site "Chess.com"]
[Date "2019.10.01"]
[Round "3"]
[White "Perecke"]
[Black "santosalberto1987"]
[Result "0-1"]
[WhiteElo "2105"]
[BlackElo "2383"]
[TimeControl "180+2"]
[EndTime "13:36:18 PDT"]
[Termination "santosalberto1987 won by resignation"]

1. e4 {[%clk 0:03:01.9]} 1... e6 {[%clk 0:02:57.5]} 2. d4 {[%clk 0:02:54.8]}
2... d5 {[%clk 0:02:57]} 3. Nc3 {[%clk 0:02:53]} 3... Nf6 {[%clk 0:02:57.7]} 4.
e5 {[%clk 0:02:46.5]} 4... Nfd7 {[%clk 0:02:58.6]} 5. Nce2 {[%clk 0:02:47.7]}
5... c5 {[%clk 0:02:59.3]} 6. c3 {[%clk 0:02:48.1]} 6... Nc6 {[%clk 0:03:00.9]}
7. f4 {[%clk 0:02:49]} 7... b5 {[%clk 0:03:01.7]} 8. Nf3 {[%clk 0:02:49.9]} 8...
a5 {[%clk 0:03:02.2]} 9. g3 {[%clk 0:02:51.1]} 9... b4 {[%clk 0:03:03.2]} 10.
Bh3 {[%clk 0:02:52.2]} 10... Ba6 {[%clk 0:03:02.4]} 11. O-O {[%clk 0:02:48.8]}
11... bxc3 {[%clk 0:02:57.3]} 12. bxc3 {[%clk 0:02:48.9]} 12... cxd4 {[%clk
0:02:58.6]} 13. cxd4 {[%clk 0:02:46.7]} 13... Be7 {[%clk 0:02:47.6]} 14. Be3
{[%clk 0:02:35.1]} 14... Nb6 {[%clk 0:02:47.5]} 15. f5 {[%clk 0:02:28.5]} 15...
exf5 {[%clk 0:02:47.4]} 16. Bxf5 {[%clk 0:02:27.5]} 16... Bxe2 {[%clk
0:02:46.7]} 17. Qxe2 {[%clk 0:02:25]} 17... O-O {[%clk 0:02:47.5]} 18. Bxh7+
{[%clk 0:02:14.8]} 18... Kxh7 {[%clk 0:02:47.9]} 19. Qc2+ {[%clk 0:02:15.9]}
19... Kg8 {[%clk 0:02:47.5]} 20. Qxc6 {[%clk 0:02:17]} 20... Nc4 {[%clk
0:02:48.6]} 21. Bf2 {[%clk 0:02:11.6]} 21... Rc8 {[%clk 0:02:46.3]} 22. Qa4
{[%clk 0:02:11.2]} 22... Qc7 {[%clk 0:02:38.5]} 23. Rac1 {[%clk 0:01:59.4]}
23... Rb8 {[%clk 0:02:37.5]} 24. Qc2 {[%clk 0:01:54.5]} 24... Rb4 {[%clk
0:02:31.6]} 25. a3 {[%clk 0:01:49.9]} 25... Rb6 {[%clk 0:02:30.2]} 26. Qf5
{[%clk 0:01:44.5]} 26... Bxa3 {[%clk 0:02:02.6]} 27. Ng5 {[%clk 0:01:25.3]}
27... Rg6 {[%clk 0:02:02.2]} 28. e6 {[%clk 0:00:59.5]} 28... Rxg5 {[%clk
0:01:57.5]} 29. Qxg5 {[%clk 0:00:53]} 29... Bxc1 {[%clk 0:01:57.2]} 30. exf7+
{[%clk 0:00:21.4]} 30... Qxf7 {[%clk 0:01:59.1]} 31. Qxc1 {[%clk 0:00:22.6]}
31... Qf3 {[%clk 0:01:59.5]} 32. Qg5 {[%clk 0:00:14.6]} 32... a4 {[%clk
0:01:57.8]} 33. Qc1 {[%clk 0:00:09]} 33... a3 {[%clk 0:01:57.9]} 34. h4 {[%clk
0:00:05.3]} 34... a2 {[%clk 0:01:56.1]} 35. Kh2 {[%clk 0:00:04.1]} 35... Ne3
{[%clk 0:01:35.7]} 0-1

[Event "*** Titled Tuesday Blitz"]
[Site "Chess.com"]
[Date "2019.10.01"]
[Round "3"]
[White "gmcorrales"]
[Black "MalyDominator"]
[Result "1-0"]
[WhiteElo "2747"]
[BlackElo "2296"]
[TimeControl "180+2"]
[EndTime "13:36:19 PDT"]
[Termination "gmcorrales won by checkmate"]

1. e4 {[%clk 0:03:01.9]} 1... c5 {[%clk 0:02:59]} 2. b3 {[%clk 0:03:03]} 2...
Nf6 {[%clk 0:02:58.8]} 3. e5 {[%clk 0:03:03.5]} 3... Nd5 {[%clk 0:02:59.6]} 4.
Qf3 {[%clk 0:03:04.1]} 4... Nc7 {[%clk 0:02:51.2]} 5. Bb2 {[%clk 0:03:04]} 5...
g6 {[%clk 0:02:48.9]} 6. e6 {[%clk 0:03:04.7]} 6... f6 {[%clk 0:02:49.9]} 7.
exd7+ {[%clk 0:03:04.5]} 7... Nxd7 {[%clk 0:02:49.6]} 8. Nc3 {[%clk 0:03:05.9]}
8... Ne5 {[%clk 0:02:48]} 9. Qg3 {[%clk 0:03:07]} 9... Bf5 {[%clk 0:02:38.7]}
10. O-O-O {[%clk 0:03:07.9]} 10... Bg7 {[%clk 0:02:23.5]} 11. f4 {[%clk
0:03:08]} 11... Nc6 {[%clk 0:02:20.6]} 12. Qe3 {[%clk 0:02:59.1]} 12... Nd4
{[%clk 0:02:12.6]} 13. Bd3 {[%clk 0:02:58.6]} 13... Bxd3 {[%clk 0:02:08.8]} 14.
Qxd3 {[%clk 0:03:00.5]} 14... Qd7 {[%clk 0:02:08.9]} 15. Nf3 {[%clk 0:03:00.5]}
15... O-O-O {[%clk 0:02:07.4]} 16. Rhe1 {[%clk 0:02:59.5]} 16... Nxf3 {[%clk
0:01:55.8]} 17. Qxf3 {[%clk 0:02:54.5]} 17... f5 {[%clk 0:01:56.2]} 18. Na4
{[%clk 0:02:46.5]} 18... Bxb2+ {[%clk 0:01:54.8]} 19. Kxb2 {[%clk 0:02:48.4]}
19... Qd6 {[%clk 0:01:44.2]} 20. Re5 {[%clk 0:02:48.9]} 20... Na6 {[%clk
0:01:38.3]} 21. d3 {[%clk 0:02:42.8]} 21... Rhe8 {[%clk 0:01:36.6]} 22. Rde1
{[%clk 0:02:38.2]} 22... Kb8 {[%clk 0:01:35.4]} 23. Qe3 {[%clk 0:02:37.7]} 23...
Qd4+ {[%clk 0:00:52.7]} 24. Qxd4 {[%clk 0:02:38.3]} 24... Rxd4 {[%clk
0:00:54.5]} 25. g3 {[%clk 0:02:39.8]} 25... c4 {[%clk 0:00:47.1]} 26. bxc4
{[%clk 0:02:39]} 26... Rd7 {[%clk 0:00:47]} 27. Nc3 {[%clk 0:02:37.3]} 27... Nc7
{[%clk 0:00:44.4]} 28. Nd5 {[%clk 0:02:38.2]} 28... Nxd5 {[%clk 0:00:44.6]} 29.
Rxd5 {[%clk 0:02:40.1]} 29... Kc7 {[%clk 0:00:35.9]} 30. Kc3 {[%clk 0:02:39.4]}
30... e6 {[%clk 0:00:24.5]} 31. Rxd7+ {[%clk 0:02:39.3]} 31... Kxd7 {[%clk
0:00:26.3]} 32. Kd4 {[%clk 0:02:39.5]} 32... Kd6 {[%clk 0:00:27.2]} 33. Rb1
{[%clk 0:02:38.6]} 33... Re7 {[%clk 0:00:25.7]} 34. a4 {[%clk 0:02:38.2]} 34...
h6 {[%clk 0:00:18.4]} 35. a5 {[%clk 0:02:34.9]} 35... g5 {[%clk 0:00:18.2]} 36.
Rb5 {[%clk 0:02:09.4]} 36... gxf4 {[%clk 0:00:18.2]} 37. gxf4 {[%clk 0:02:11.3]}
37... Kc6 {[%clk 0:00:18.2]} 38. Ke5 {[%clk 0:02:12.2]} 38... Rg7 {[%clk
0:00:13.5]} 39. Kxe6 {[%clk 0:02:11.1]} 39... Rg2 {[%clk 0:00:14.5]} 40. h4
{[%clk 0:02:08.2]} 40... Rh2 {[%clk 0:00:11.5]} 41. Rxf5 {[%clk 0:02:06.5]}
41... Rxh4 {[%clk 0:00:11.9]} 42. d4 {[%clk 0:02:08.1]} 42... Rh2 {[%clk
0:00:11.2]} 43. Rc5# {[%clk 0:02:08.8]} 1-0